bitfinex-derivatives/quotes_BTCF0:USTF0_20250320
["timestamp","ask_amount","ask_price","bid_price","bid_amount"]
[1742457828815,0.20036984,85891.0,85890.0,0.17888862]
[1742457829912,0.19192391,85891.0,85890.0,0.17888862]
[1742457831119,0.19392391,85891.0,85890.0,0.17888862]
[1742457837520,0.19392391,85891.0,85890.0,0.11658862]
[1742457837715,0.19392391,85891.0,85890.0,0.17848862]
[1742457840630,0.1939927,85891.0,85890.0,0.17848862]
[1742457844031,0.19400991,85891.0,85890.0,0.17848862]
[1742457845926,0.19401434,85891.0,85890.0,0.17848862]
[1742457846136,0.07760174,85891.0,85890.0,0.17848862]
[1742457846433,0.19401434,85891.0,85890.0,0.17848862]
[1742457847234,0.07760174,85891.0,85890.0,0.17848862]
[1742457847539,0.19401434,85891.0,85890.0,0.17848862]
[1742457848035,0.19401434,85891.0,85890.0,0.06207462]
[1742457852441,0.1164329,85876.0,85875.0,0.20939071]
[1742457852641,0.96553464,85876.0,85875.0,0.20939071]
[1742457853244,0.99553464,85876.0,85875.0,0.24049071]
[1742457853430,0.99553464,85876.0,85875.0,0.35692501]
[1742457853941,0.99553464,85876.0,85875.0,0.35792501]
[1742457853942,1.02803464,85876.0,85875.0,0.35792501]
[1742457854350,1.02803464,85876.0,85875.0,0.27149071]
[1742457854537,1.02803464,85876.0,85875.0,0.38892501]
[1742457855649,1.02803464,85876.0,85875.0,0.1795343]
[1742457856541,0.91160174,85876.0,85875.0,0.1795343]
[1742457857044,1.02803464,85876.0,85875.0,0.1795343]
[1742457862348,0.91156961,85876.0,85875.0,0.1795343]
[1742457863151,1.02800251,85876.0,85875.0,0.1795343]
[1742457863748,0.91200251,85876.0,85875.0,0.1795343]
[1742457864058,1.02752251,85876.0,85875.0,0.1795343]
[1742457866057,1.02750222,85876.0,85875.0,0.1795343]
[1742457866257,1.02750243,85876.0,85875.0,0.1795343]
[1742457868155,0.91198243,85876.0,85875.0,0.1795343]
[1742457868355,1.02734243,85876.0,85875.0,0.1795343]
[1742457872760,1.02706243,85876.0,85875.0,0.1795343]
[1742457874759,1.02708658,85876.0,85875.0,0.1795343]
[1742457878869,0.30548658,85876.0,85875.0,0.1795343]
[1742457879252,0.66628658,85876.0,85875.0,0.1795343]
[1742457880571,0.54985368,85876.0,85875.0,0.1795343]
[1742457881065,0.66604852,85876.0,85875.0,0.1795343]
[1742457882074,0.54957562,85876.0,85875.0,0.1795343]
[1742457882564,0.37227562,85876.0,85875.0,0.1795343]
[1742457883273,0.48870852,85876.0,85875.0,0.1795343]
[1742457883467,0.55100852,85876.0,85875.0,0.1795343]
[1742457884964,0.55098406,85876.0,85875.0,0.1795343]
[1742457885370,0.48868406,85876.0,85875.0,0.1795343]
[1742457886070,0.55458406,85876.0,85875.0,0.1795343]
[1742457887970,0.43815116,85876.0,85875.0,0.1795343]
[1742457888172,0.00017462,85884.0,85883.0,0.1164235]
[1742457888473,0.17969672,85884.0,85883.0,0.1164235]
[1742457889167,0.17969672,85884.0,85883.0,0.1782235]
[1742457890677,0.18069672,85884.0,85883.0,0.1782235]
[1742457890879,0.06427462,85884.0,85883.0,0.1782235]
[1742457891370,0.00217462,85884.0,85883.0,0.1782235]
[1742457892170,0.11859672,85884.0,85883.0,0.1782235]
[1742457892365,0.18249672,85884.0,85883.0,0.1782235]
[1742457892572,0.18249672,85884.0,85883.0,0.18994169]
[1742457892879,0.06607462,85884.0,85883.0,0.18994169]
[1742457893378,0.06607462,85884.0,85883.0,0.21994169]
[1742457897477,0.00217462,85884.0,85883.0,0.21994169]
[1742457897676,0.06457462,85884.0,85883.0,0.21994169]
[1742457898171,0.07577892,85884.0,85883.0,0.21994169]
[1742457903393,0.19220102,85884.0,85883.0,0.21994169]
[1742457903687,0.07577892,85884.0,85883.0,0.21994169]
[1742457904784,0.07571536,85884.0,85883.0,0.21994169]
[1742457905790,0.07571536,85884.0,85883.0,0.18994169]
[1742457906286,0.01331536,85884.0,85883.0,0.45994169]
[1742457906997,0.07641536,85884.0,85883.0,0.45994169]
[1742457908401,0.07541536,85884.0,85883.0,0.45994169]
[1742457908698,0.07641536,85884.0,85883.0,0.45994169]
[1742457909200,0.07641536,85884.0,85883.0,0.60470169]
[1742457910699,0.06527462,85884.0,85883.0,0.60470169]
[1742457910902,0.0763558,85884.0,85883.0,0.60470169]
[1742457911196,0.0763558,85884.0,85883.0,0.48994169]
[1742457911403,0.1927779,85884.0,85883.0,0.18904169]
[1742457911999,0.0763558,85884.0,85883.0,0.18904169]
[1742457912399,0.1927779,85884.0,85883.0,0.1164235]
[1742457912788,0.07638354,85884.0,85883.0,0.1164235]
[1742457913389,0.07638354,85884.0,85883.0,0.1364235]
[1742457913591,0.07638354,85884.0,85883.0,0.1683235]
[1742457914305,0.07638354,85884.0,85883.0,0.1364235]
[1742457915102,0.07638354,85884.0,85883.0,0.1683235]
[1742457915408,0.07638354,85884.0,85883.0,0.1364235]
[1742457915599,0.07638354,85884.0,85883.0,0.1164235]
[1742457915902,0.1164235,85883.0,85882.0,0.1164235]
[1742457916111,0.12753242,85883.0,85882.0,4e-05]
[1742457916311,0.19003242,85883.0,85882.0,4e-05]
[1742457916611,0.55083242,85883.0,85882.0,0.1164648]
[1742457916806,0.55085696,85883.0,85882.0,4e-05]
[1742457917005,0.55085696,85883.0,85882.0,0.1164648]
[1742457917301,0.55085696,85883.0,85882.0,0.1164248]
[1742457918809,0.5397235,85883.0,85882.0,0.1164248]
[1742457919004,0.55285375,85883.0,85882.0,0.1164248]
[1742457919599,0.19605375,85883.0,85882.0,0.1164248]
[1742457919898,0.1164248,85882.0,85881.0,4e-05]
[1742457920208,0.12755505,85882.0,85881.0,4e-05]
[1742457920396,0.19215505,85882.0,85881.0,4e-05]
[1742457921308,0.1164411,85870.0,85869.0,0.2367619]
[1742457921498,0.48837135,85870.0,85869.0,0.1846619]
[1742457922008,0.54877135,85870.0,85869.0,0.1846619]
[1742457922510,0.54877135,85870.0,85869.0,0.1746619]
[1742457923007,0.54877135,85870.0,84737.0,0.21773884]
[1742457923008,0.1164601,85856.0,85851.0,0.29994117]
[1742457923207,0.96386722,85856.0,85851.0,0.28799876]
[1742457923396,0.96386722,85856.0,85851.0,0.40446506]
[1742457923601,0.96386722,85856.0,85853.0,0.1164637]
[1742457923807,1.02426722,85856.0,85851.0,0.40602506]
[1742457924114,1.02426722,85856.0,85853.0,0.1164637]
[1742457924606,0.1164628,85854.0,85853.0,0.1165037]
[1742457924811,0.12758992,85854.0,85853.0,0.1165037]
[1742457926310,0.13371471,85854.0,85853.0,0.1165037]
[1742457926911,0.13371471,85854.0,85853.0,0.1478037]
[1742457927113,0.1336933,85854.0,85853.0,0.1478037]
[1742457929414,0.1224628,85854.0,85853.0,0.1478037]
[1742457930416,0.006,85854.0,85853.0,0.1478037]
[1742457930916,0.1224628,85854.0,85853.0,0.1478037]
[1742457933611,0.1224628,85854.0,85853.0,0.03134]
[1742457934403,0.1224628,85854.0,85853.0,0.1789041]
[1742457934616,0.1224628,85854.0,85849.0,4e-05]
[1742457934617,0.1164682,85850.0,85849.0,4e-05]
[1742457934812,0.1164709,85849.0,85848.0,0.1164703]
[1742457935018,0.4772709,85849.0,85848.0,0.1164703]
[1742457935213,0.4772709,85849.0,85848.0,0.1464703]
[1742457935609,0.5076709,85849.0,85848.0,0.1464703]
[1742457936618,0.5086709,85849.0,85848.0,0.1464703]
[1742457937816,0.5096709,85849.0,85848.0,0.1464703]
[1742457938708,0.1164709,85848.0,85842.0,4e-05]
[1742457938919,0.1164858,85837.0,85836.0,0.1165241]
[1742457939115,0.1164858,85837.0,85836.0,0.1265272]
[1742457939116,0.5917658,85837.0,85836.0,0.1265272]
[1742457939814,0.6533658,85837.0,85836.0,0.1265272]
[1742457940218,0.6533658,85837.0,85836.0,0.1285272]
[1742457942223,0.6533658,85837.0,85836.0,0.1627272]
[1742457942824,0.6533658,85837.0,85836.0,0.04624]
[1742457943017,0.1747708,85818.0,85817.0,0.0582554]
[1742457943226,0.1747708,85818.0,85817.0,0.1782554]
[1742457943425,0.0582564,85818.0,85817.0,0.1782554]
[1742457943826,0.0582564,85818.0,85817.0,0.2094554]
[1742457944323,0.0592564,85818.0,85817.0,0.2441554]
[1742457944530,0.0592564,85818.0,85817.0,0.2807554]
[1742457946625,0.0592564,85818.0,85817.0,0.28941395]
[1742457949327,0.0910564,85818.0,85817.0,0.31697155]
[1742457949722,0.13335797,85818.0,85817.0,0.31697155]
[1742457950826,0.13235797,85818.0,85817.0,0.30697155]
[1742457951034,0.13335797,85818.0,85817.0,0.31597155]
[1742457951720,0.13336471,85818.0,85817.0,0.31597155]
[1742457953836,0.13336471,85818.0,85817.0,0.19597155]
[1742457954921,0.032,85818.0,85817.0,0.57009155]
[1742457955127,0.001,85818.0,85817.0,0.57009155]
[1742457961935,0.0307,85822.0,85821.0,0.1165076]
[1742457962742,0.00017473,85826.0,85825.0,0.1165021]
[1742457963036,0.00017473,85826.0,85825.0,0.1265021]
[1742457963238,0.01145506,85826.0,85825.0,0.1265021]
[1742457963432,0.00017473,85826.0,85825.0,0.1265021]
[1742457963833,0.00017473,85826.0,85825.0,0.2404621]
[1742457964026,0.00017473,85826.0,85825.0,0.2734621]
[1742457964336,0.01146506,85826.0,85825.0,0.2764621]
[1742457965233,0.01146506,85826.0,85825.0,0.2804621]
[1742457965933,0.00017473,85826.0,85825.0,0.2804621]
[1742457968836,0.06227473,85826.0,85825.0,0.2804621]
[1742457969036,0.07359533,85826.0,85825.0,0.2804621]
[1742457969235,0.06227473,85826.0,85825.0,0.2804621]
[1742457969435,0.07359622,85826.0,85825.0,0.2804621]
[1742457969644,0.06227473,85826.0,85825.0,0.2804621]
[1742457969846,0.07358796,85826.0,85825.0,0.2804621]
[1742457970244,0.07358724,85826.0,85825.0,0.2804621]
[1742457970442,0.19008746,85826.0,85825.0,0.2804621]
[1742457970753,0.07358666,85826.0,85825.0,0.1335021]
[1742457971437,0.07360083,85826.0,85825.0,0.1335021]
[1742457971837,0.07360083,85826.0,85825.0,0.1325021]
[1742457973137,0.07360083,85826.0,85825.0,0.1648021]
[1742457973342,0.06227473,85826.0,85825.0,0.1618021]
[1742457973547,0.19009972,85826.0,85825.0,0.1305021]
[1742457973732,0.19009972,85826.0,85825.0,0.1295021]
[1742457973733,0.07359892,85826.0,85825.0,0.1295021]
[1742457973939,0.19009972,85826.0,85825.0,0.1295021]
[1742457974138,0.19009972,85826.0,85825.0,0.1195021]
[1742457975352,0.17877553,85826.0,85825.0,0.1195021]
[1742457975554,0.19011972,85826.0,85825.0,0.1195021]
[1742457976244,0.07361892,85826.0,85825.0,0.1195021]
[1742457976552,0.07361892,85826.0,85825.0,0.1514021]
[1742457977052,0.19011972,85826.0,85825.0,0.1514021]
[1742457977348,0.07361892,85826.0,85825.0,0.1514021]
[1742457977851,0.07361892,85826.0,85825.0,0.1818021]
[1742457978942,0.07361892,85826.0,85825.0,0.1514021]
[1742457980338,0.19011972,85826.0,85825.0,0.1514021]
[1742457980939,0.07361892,85826.0,85825.0,0.1514021]
[1742457981138,0.19011972,85826.0,85825.0,0.1514021]
[1742457983345,0.19011972,85826.0,85825.0,0.1195021]
[1742457983552,0.19011972,85826.0,85825.0,0.003]
[1742457983749,0.19011972,85826.0,85825.0,0.1195021]
[1742457985745,0.19019617,85826.0,85825.0,0.003]
[1742457986252,0.19019617,85826.0,85825.0,0.1195021]
[1742457986556,0.1902039,85826.0,85825.0,0.1195021]
[1742457989355,0.1902039,85826.0,85825.0,0.003]
[1742457989563,0.1902039,85826.0,85825.0,0.1195021]
[1742457989853,0.1902039,85826.0,85825.0,0.003]
[1742457990658,0.20175352,85826.0,85825.0,0.003]
[1742457994246,0.1902039,85826.0,85825.0,0.1195021]
[1742457996157,0.1902039,85826.0,85825.0,0.003]
[1742457997565,0.1902039,85826.0,85825.0,0.1195021]
[1742457997756,0.1902039,85826.0,85825.0,0.1509021]
[1742458000567,0.1902039,85826.0,85825.0,0.0344]
[1742458001967,0.1902039,85826.0,85825.0,0.1509021]
[1742458002564,0.1902039,85826.0,85825.0,0.0344]
[1742458002863,0.1902039,85826.0,85825.0,0.1509021]
[1742458003461,0.0116031,85826.0,85825.0,0.1509021]
[1742458003764,0.0116031,85826.0,85825.0,0.2124021]
[1742458003964,0.0116031,85826.0,85825.0,0.3224021]
[1742458004966,0.14634,85838.0,85825.0,0.3224021]
[1742458004967,0.3608,85834.0,85833.0,0.1164913]
[1742458005172,0.3608,85834.0,85833.0,0.12840938]
[1742458005669,0.3608,85834.0,85833.0,0.19100938]
[1742458006065,0.4782899,85834.0,85833.0,0.19100938]
[1742458006270,0.4792899,85834.0,85833.0,0.1790913]
[1742458006766,0.4792899,85834.0,85833.0,0.19090193]
[1742458007164,0.5096899,85834.0,85833.0,0.19090193]
[1742458007673,0.5096899,85834.0,85833.0,0.1790913]
[1742458008967,0.3932,85834.0,85833.0,0.19105961]
[1742458010179,0.5096899,85834.0,85833.0,0.1790913]
[1742458010873,0.6231299,85834.0,85833.0,0.1481913]
[1742458011070,0.50664,85834.0,85833.0,0.1481913]
[1742458012278,0.6231299,85834.0,85833.0,0.1481913]
[1742458012469,0.53704,85834.0,85833.0,0.1481913]
[1742458013076,0.6535299,85834.0,85833.0,0.1481913]
[1742458015071,0.54843204,85834.0,85833.0,0.1481913]
[1742458015273,0.66492194,85834.0,85833.0,0.1481913]
[1742458016368,0.66491408,85834.0,85833.0,0.1481913]
[1742458017479,0.66491408,85834.0,85833.0,0.1805913]
[1742458018876,0.66491408,85834.0,85833.0,0.0641]
[1742458019271,0.66491408,85834.0,85833.0,0.1805913]
[1742458020476,0.66491176,85834.0,85833.0,0.0317]
[1742458021278,0.1164913,85833.0,85832.0,4e-05]
[1742458021478,0.1165008,85826.0,85825.0,0.00017473]
[1742458021674,0.48868266,85826.0,85825.0,0.00017473]
[1742458021874,0.48868266,85826.0,85825.0,0.11667683]
[1742458022274,0.55028266,85826.0,85825.0,0.11667683]
[1742458022780,0.55028266,85826.0,85825.0,0.11867683]
[1742458024578,0.55028266,85826.0,85825.0,0.15357683]
[1742458025376,0.55028266,85826.0,85825.0,0.03707473]
[1742458025579,0.55028266,85826.0,85825.0,0.15357683]
[1742458025974,0.55028266,85826.0,85825.0,0.03707473]
[1742458026174,0.55028266,85826.0,85825.0,0.06737473]
[1742458026579,0.55028266,85826.0,85825.0,0.18387683]
[1742458027584,0.55028266,85826.0,85825.0,0.06737473]
[1742458029483,0.55028266,85826.0,85825.0,0.18387683]
[1742458030089,0.4224,85826.0,85825.0,0.18387683]
[1742458030292,0.55038539,85826.0,85825.0,0.18387683]
[1742458030790,0.43388459,85826.0,85825.0,0.18387683]
[1742458031182,0.55038539,85826.0,85825.0,0.18387683]
[1742458035984,0.55040352,85826.0,85825.0,0.18387683]
[1742458041100,0.56222405,85826.0,85825.0,0.18387683]
[1742458042002,0.56222405,85826.0,85825.0,0.00417473]
[1742458042191,0.56222483,85826.0,85825.0,0.12067683]
[1742458042495,0.57187269,85826.0,85825.0,0.00417473]
[1742458042702,0.57187269,85826.0,85825.0,0.12067683]
[1742458043091,0.57187269,85826.0,85825.0,0.15147683]
[1742458043297,0.58137228,85826.0,85825.0,0.18187683]
[1742458043891,0.57187269,85826.0,85825.0,0.18187683]
[1742458044689,0.57187269,85826.0,85825.0,0.03497473]
[1742458044905,0.57187269,85826.0,85825.0,0.00417473]
[1742458045496,0.57187269,85826.0,85825.0,0.12067683]
[1742458045705,0.58136228,85826.0,85825.0,0.12067683]
[1742458046001,0.58136228,85826.0,85825.0,0.18187683]
[1742458046194,0.56985878,85826.0,85825.0,0.06537473]
[1742458046401,0.58144232,85826.0,85825.0,0.06537473]
[1742458046601,0.57179446,85826.0,85825.0,0.06537473]
[1742458046798,0.58136999,85826.0,85825.0,0.1454479]
[1742458046997,0.5718804,85826.0,85825.0,0.0289458]
[1742458047411,0.56229567,85826.0,85825.0,0.0289458]
[1742458048505,0.56229567,85826.0,85825.0,0.1454479]
[1742458049007,0.57179747,85826.0,85825.0,0.1454479]
[1742458049511,0.55997694,85826.0,85825.0,0.1454479]
[1742458050105,0.55047514,85826.0,85825.0,0.1454479]
[1742458050407,0.56005574,85826.0,85825.0,0.1454479]
[1742458050608,0.56005569,85826.0,85825.0,0.1454479]
[1742458051400,0.5696475,85826.0,85825.0,0.0289458]
[1742458051607,0.5696475,85826.0,85825.0,0.1454479]
[1742458052500,0.1165144,85816.0,85815.0,0.1165533]
[1742458052697,0.1473337,85816.0,85815.0,0.1365133]
[1742458053098,0.2407337,85816.0,85815.0,0.1672133]
[1742458053513,0.23115315,85816.0,85815.0,0.1672133]
[1742458054110,0.23115315,85816.0,85815.0,0.1492133]
[1742458054606,0.2407479,85816.0,85815.0,0.1492133]
[1742458055401,0.23115315,85816.0,85815.0,0.1492133]
[1742458055614,0.23115315,85816.0,85815.0,0.1532133]
[1742458056110,0.23115315,85816.0,85815.0,0.1225157]
[1742458058601,0.23110416,85816.0,85815.0,0.1225157]
[1742458059503,0.2406589,85816.0,85815.0,0.006]
[1742458059703,0.2406589,85816.0,85815.0,0.1225157]
[1742458060104,0.2406589,85816.0,85815.0,0.006]
[1742458060304,0.2406589,85816.0,85815.0,0.1225157]
[1742458060617,0.2406589,85816.0,85809.0,0.00156]
[1742458060618,0.1165225,85810.0,85809.0,0.00156]
[1742458060814,0.1165225,85810.0,85799.0,4e-05]
[1742458060815,0.1165347,85801.0,85799.0,0.00156]
[1742458061019,0.1165347,85801.0,85800.0,0.2665361]
[1742458061020,0.49848739,85801.0,85800.0,0.2665361]
[1742458061313,0.49748739,85801.0,85800.0,0.15]
[1742458061505,0.49752446,85801.0,85800.0,0.15]
[1742458061700,0.55922446,85801.0,85800.0,0.15]
[1742458062112,0.55922446,85801.0,85800.0,0.2665361]
[1742458062113,0.56996107,85801.0,85800.0,0.2665361]
[1742458062302,0.56222446,85801.0,85800.0,0.2665361]
[1742458062508,0.5741471,85801.0,85800.0,0.2995361]
[1742458062708,0.56222446,85801.0,85800.0,0.183]
[1742458062906,0.56222446,85801.0,85800.0,0.3035361]
[1742458063100,0.56222446,85801.0,85800.0,0.154]
[1742458063509,0.56222446,85801.0,85800.0,0.2705361]
[1742458063915,0.56222446,85801.0,85800.0,0.154]
[1742458064613,0.57389241,85801.0,85800.0,0.2705361]
[1742458065216,0.57389241,85801.0,85800.0,0.154]
[1742458065414,0.5643006,85801.0,85800.0,0.154]
[1742458066502,0.57376941,85801.0,85800.0,0.154]
[1742458068816,0.68768941,85801.0,85800.0,0.154]
[1742458069012,0.6782206,85801.0,85800.0,0.154]
[1742458071009,0.6782206,85801.0,85800.0,0.104]
[1742458074127,0.5643006,85801.0,85800.0,0.104]
[1742458074322,0.6784606,85801.0,85800.0,0.104]
[1742458074528,0.1165551,85786.0,85781.0,0.42564487]
[1742458074826,0.4773551,85786.0,85785.0,0.11]
[1742458075217,0.9522751,85786.0,85785.0,0.09]
[1742458075412,0.96377613,85786.0,85785.0,0.09]
[1742458075613,1.02717613,85786.0,85785.0,0.09]
[1742458076524,1.02717613,85786.0,85783.0,4e-05]
[1742458076525,0.1135578,85784.0,85783.0,4e-05]
[1742458076821,0.1135578,85784.0,85783.0,0.1265992]
[1742458076822,0.12505883,85784.0,85783.0,0.1265992]
[1742458077216,0.23929883,85784.0,85783.0,0.01004]
[1742458077418,0.23629883,85784.0,85783.0,0.01004]
[1742458078217,0.23625883,85784.0,85783.0,0.1265992]
[1742458078423,0.23825883,85784.0,85783.0,0.1265992]
[1742458079132,0.24125883,85784.0,85783.0,0.1265992]
[1742458079527,0.24125883,85784.0,85783.0,0.01004]
[1742458081027,0.24125883,85784.0,85783.0,0.1265992]
[1742458081232,0.24125883,85784.0,85783.0,0.01004]
[1742458082332,0.24112942,85784.0,85783.0,0.01004]
[1742458083935,0.1165714,85774.0,85767.0,4e-05]
[1742458084140,0.1165768,85770.0,85769.0,0.1485782]
[1742458084338,0.4773768,85770.0,85769.0,0.3303782]
[1742458084642,0.5423768,85770.0,85769.0,0.3303782]
[1742458084838,0.4258,85770.0,85769.0,0.3303782]
[1742458085146,0.3936,85770.0,85769.0,0.3303782]
[1742458085941,0.3608,85770.0,85769.0,0.3303782]
[1742458086145,0.031,85774.0,85773.0,0.1165728]
[1742458086336,0.3608,85776.0,85775.0,0.11657]
[1742458086533,0.4773687,85776.0,85775.0,0.14657]
[1742458087042,0.4773687,85776.0,85775.0,0.20957]
[1742458087442,0.5386687,85776.0,85775.0,0.20957]
[1742458088035,0.3918,85776.0,85775.0,0.20957]
[1742458088240,0.5083687,85776.0,85775.0,0.20957]
[1742458088746,0.3918,85776.0,85775.0,0.20957]
[1742458089651,0.3608,85776.0,85775.0,0.20957]
[1742458093056,0.4773687,85776.0,85775.0,0.20957]
[1742458093249,0.392,85776.0,85775.0,0.20957]
[1742458093547,0.3608,85776.0,85775.0,0.48957]
[1742458094955,0.392,85776.0,85775.0,0.20957]
[1742458099949,0.5085687,85776.0,85775.0,0.14657]
[1742458100146,0.51999807,85776.0,85775.0,0.14657]
[1742458100448,0.51999807,85776.0,85775.0,0.17787]
[1742458100846,0.51999807,85776.0,85775.0,0.14657]
[1742458101655,0.51999807,85776.0,85775.0,0.17937]
[1742458102257,0.40342937,85776.0,85775.0,0.21137]
[1742458102651,0.51999807,85776.0,85775.0,0.17937]
[1742458102847,0.55209807,85776.0,85775.0,0.17937]
[1742458103052,0.43552937,85776.0,85775.0,0.17937]
[1742458103265,0.43552937,85776.0,85775.0,0.21137]
[1742458103451,0.55209807,85776.0,85775.0,0.21137]
[1742458105556,0.55209807,85776.0,85775.0,0.14657]
[1742458106072,0.55209807,85776.0,85775.0,0.11657]
[1742458106661,0.5406687,85776.0,85775.0,0.11657]
[1742458106867,0.55215982,85776.0,85775.0,0.11657]
[1742458110855,0.55219489,85776.0,85775.0,0.11657]
[1742458112063,0.55219388,85776.0,85775.0,0.11657]
[1742458116370,0.55219388,85776.0,85775.0,0.14837]
[1742458116560,0.55219388,85776.0,85775.0,0.11657]
[1742458116973,0.55219388,85776.0,85775.0,0.14917]
[1742458117868,0.43562518,85776.0,85775.0,0.15917]
[1742458118172,0.43562518,85776.0,85775.0,0.18947]
[1742458118966,0.5406687,85776.0,85775.0,0.18947]
[1742458119271,0.55209105,85776.0,85775.0,0.18947]
[1742458120262,0.43552235,85776.0,85775.0,0.18947]
[1742458121567,0.40432235,85776.0,85775.0,0.57391]
[1742458122475,0.0326,85789.0,85788.0,0.1165524]
[1742458122665,0.04396452,85789.0,85788.0,0.1165524]
[1742458123265,0.07646452,85789.0,85788.0,0.1165524]
[1742458123663,0.07946452,85789.0,85788.0,0.1165524]
[1742458123872,0.08346452,85789.0,85788.0,0.1486524]
[1742458124374,0.08246452,85789.0,85788.0,0.1486524]
[1742458125075,0.07846452,85789.0,85788.0,0.1486524]
[1742458125274,0.08146452,85789.0,85788.0,0.1486524]
[1742458125770,0.0375,85789.0,85788.0,0.1486524]
[1742458125976,0.04874822,85789.0,85788.0,0.1794524]
[1742458126276,0.0375,85789.0,85788.0,0.1794524]
[1742458126479,0.0375,85789.0,85788.0,0.1894524]
[1742458126866,0.0325,85789.0,85788.0,0.1894524]
[1742458127067,0.0365,85789.0,85788.0,0.4694524]
[1742458127979,0.004,85789.0,85788.0,0.4694524]
[1742458130972,0.036,85789.0,85788.0,0.4694524]
[1742458132070,0.152551,85789.0,85788.0,0.4694524]
[1742458132265,0.036,85789.0,85788.0,0.4694524]
[1742458133376,0.037,85789.0,85788.0,0.4694524]
[1742458134181,0.034,85789.0,85788.0,0.4694524]
[1742458134383,0.036,85789.0,85788.0,0.4694524]
[1742458135585,0.034,85789.0,85788.0,0.4694524]
[1742458135789,0.036,85789.0,85788.0,0.4694524]
[1742458137707,0.034,85789.0,85788.0,0.4694524]
[1742458137914,0.036,85789.0,85788.0,0.4694524]
[1742458139197,0.0685,85789.0,85788.0,0.4694524]
[1742458141125,0.0685,85789.0,85788.0,0.4373524]
[1742458141427,0.0685,85789.0,85788.0,0.1573524]
[1742458143412,0.0685,85789.0,85788.0,0.1894524]
[1742458144918,0.0685,85789.0,85788.0,0.1994524]
[1742458146216,0.0685,85789.0,85788.0,0.1673524]
[1742458146527,0.185051,85789.0,85788.0,0.1673524]
[1742458147527,0.0685,85789.0,85788.0,0.1673524]
[1742458147714,0.0685,85789.0,85788.0,0.1365524]
[1742458147917,0.07978765,85789.0,85788.0,0.1365524]
[1742458148219,0.0685,85789.0,85788.0,0.1365524]
[1742458148813,0.07978899,85789.0,85788.0,0.1686524]
[1742458149015,0.0685,85789.0,85788.0,0.1686524]
[1742458149319,0.07979185,85789.0,85788.0,0.1686524]
[1742458149716,0.07979823,85789.0,85788.0,0.1686524]
[1742458149923,0.0685,85789.0,85788.0,0.2007524]
[1742458150116,0.0685,85789.0,85788.0,0.4607524]
[1742458150606,0.0685,85789.0,85788.0,1.9607524]
[1742458150803,0.0655,85789.0,85788.0,1.9607524]
[1742458152896,0.0645,85789.0,85788.0,1.9607524]
[1742458154510,0.3608,85802.0,85801.0,0.1165347]
[1742458154795,0.37211394,85802.0,85801.0,0.1165347]
[1742458155685,0.37211394,85802.0,85801.0,0.1803347]
[1742458157098,0.37511394,85802.0,85801.0,0.1803347]
[1742458157286,0.37711394,85802.0,85801.0,0.1803347]
[1742458157694,0.37411394,85802.0,85801.0,0.1803347]
[1742458157998,0.37711394,85802.0,85801.0,0.1803347]
[1742458158486,0.49364734,85802.0,85801.0,0.1165347]
[1742458159302,0.55734734,85802.0,85801.0,0.1165347]
[1742458159598,0.59044734,85802.0,85801.0,0.1165347]
[1742458160795,0.58844734,85802.0,85801.0,0.1165347]
[1742458161000,0.59044734,85802.0,85801.0,0.1165347]
[1742458161395,0.59144734,85802.0,85801.0,0.1165347]
[1742458163003,0.59244734,85802.0,85801.0,0.1165347]
[1742458163199,0.59250242,85802.0,85801.0,0.1165347]
[1742458163993,0.47596902,85802.0,85801.0,0.1165347]
[1742458164397,0.59250242,85802.0,85801.0,0.1165347]
[1742458165288,0.47596902,85802.0,85801.0,0.1165347]
[1742458165503,0.47596902,85802.0,85801.0,0.1496347]
[1742458165986,0.59250242,85802.0,85801.0,0.1165347]
[1742458167101,0.59246828,85802.0,85801.0,0.1165347]
[1742458168403,0.58946828,85802.0,85801.0,0.1165347]
[1742458168600,0.59246828,85802.0,85801.0,0.1165347]
[1742458169395,0.47593488,85802.0,85801.0,0.1165347]
[1742458169595,0.47593488,85802.0,85801.0,0.1479347]
[1742458170407,0.59246828,85802.0,85801.0,0.1479347]
[1742458170598,0.59146828,85802.0,85801.0,0.1479347]
[1742458171198,0.58846828,85802.0,85801.0,0.1479347]
[1742458171492,0.59146828,85802.0,85801.0,0.1165347]
[1742458171902,0.58846828,85802.0,85801.0,0.1165347]
[1742458172093,0.59146828,85802.0,85801.0,0.1165347]
[1742458172601,0.59246828,85802.0,85801.0,0.1165347]
[1742458178309,0.1165347,85801.0,85800.0,4e-05]
[1742458178514,0.1165619,85781.0,85780.0,0.32595061]
[1742458178698,0.48869678,85781.0,85780.0,0.22939071]
[1742458178901,0.48869678,85781.0,85780.0,0.20939071]
[1742458179502,0.55200265,85781.0,85780.0,0.20939071]
[1742458179701,0.55200265,85781.0,85775.0,0.27945213]
[1742458179702,0.1165687,85776.0,85775.0,0.27945213]
[1742458180015,0.24302945,85776.0,85775.0,0.27945213]
[1742458180706,0.30602945,85776.0,85775.0,0.27945213]
[1742458181018,0.31763973,85776.0,85775.0,0.27945213]
[1742458181608,0.31760212,85776.0,85775.0,0.27945213]
[1742458181810,0.31755939,85776.0,85775.0,0.27945213]
[1742458182013,0.11657,85775.0,85774.0,0.1165713]
[1742458182205,0.1165714,85774.0,85773.0,0.0583257]
[1742458182516,0.55183181,85774.0,85773.0,4e-05]
[1742458182914,0.55183181,85774.0,85773.0,0.1166128]
[1742458189623,0.55183181,85774.0,85773.0,4e-05]
[1742458191713,0.1748645,85772.0,85771.0,0.1165754]
[1742458192725,0.5356645,85772.0,85771.0,0.1165754]
[1742458194026,0.5356645,85772.0,85771.0,0.1482754]
[1742458195820,0.5356645,85772.0,85771.0,0.1804754]
[1742458196727,0.5990645,85772.0,85771.0,0.1804754]
[1742458197227,0.7137445,85772.0,85771.0,0.0639]
[1742458200229,0.72511902,85772.0,85771.0,0.0639]
[1742458200429,0.72511902,85772.0,85771.0,0.0317]
[1742458201134,0.1165918,85759.0,85743.0,1.51102242]
[1742458201324,0.60353297,85759.0,85758.0,0.06]
[1742458201520,0.48702595,85759.0,85758.0,0.1765932]
[1742458201722,0.6226518,85759.0,85758.0,0.1765932]
[1742458201929,0.6226518,85759.0,85758.0,0.2382932]
[1742458202126,0.3608,85759.0,85758.0,0.2382932]
[1742458202522,0.4773918,85759.0,85758.0,0.2382932]
[1742458202833,0.4773918,85759.0,85758.0,0.24970492]
[1742458203332,0.4773918,85759.0,85758.0,0.2382932]
[1742458203520,0.3608,85759.0,85758.0,0.2382932]
[1742458204521,0.4773918,85759.0,85758.0,0.2382932]
[1742458206134,0.48887399,85759.0,85758.0,0.1217]
[1742458206328,0.48887399,85759.0,85758.0,0.2382932]
[1742458206729,0.48887399,85759.0,85758.0,0.1217]
[1742458206928,0.55187399,85759.0,85758.0,0.1217]
[1742458207435,0.55189342,85759.0,85758.0,0.1217]
[1742458209440,0.55289342,85759.0,85758.0,0.1217]